bitfinex/quotes_ETHUSD_20260121
["timestamp","ask_amount","ask_price","bid_price","bid_amount"]
[1768956990764,0.535,2961.4,2960.9,0.002]
[1768956991085,0.001,2961.1,2960.9,0.002]
[1768956992075,0.001,2961.5,2961.0,1.72108076]
[1768956992280,0.536,2961.5,2961.0,1.64493735]
[1768956994679,0.001,2961.5,2961.0,1.64493735]
[1768957000203,1.60055129,2962.2,2961.2,1.72108076]
[1768957000403,1.60055129,2962.0,2961.3,0.78855604]
[1768957000581,1.60055129,2962.0,2961.1,1.72108076]
[1768957001211,1.60055129,2961.8,2961.1,1.72108076]
[1768957001743,1.60055129,2961.8,2960.9,1.89558884]
[1768957001887,1.60055129,2961.8,2960.7,0.002]
[1768957002088,1.60055129,2961.8,2960.7,1.72308076]
[1768957002423,1.60055129,2961.7,2960.7,1.72308076]
[1768957003588,1.60055129,2961.5,2960.7,1.72308076]
[1768957005113,1.60055129,2961.5,2960.7,1.63518594]
[1768957005292,2.15175089,2961.5,2960.7,1.63518594]
[1768957005497,1.7258862,2961.4,2960.7,1.63518594]
[1768957006101,0.535,2961.3,2960.7,1.63518594]
[1768957009424,1.7258862,2961.7,2960.7,1.63518594]
[1768957009630,0.535,2961.3,2960.7,1.63518594]
[1768957009800,0.535,2961.6,2961.0,1.76841496]
[1768957012020,1.7258862,2961.7,2961.0,1.76841496]
[1768957012231,0.535,2961.6,2961.0,1.76841496]
[1768957014140,0.001,2961.4,2961.0,1.76841496]
[1768957014430,0.001,2961.4,2961.1,1.76841496]
[1768957016607,0.001,2961.8,2961.3,1.76841496]
[1768957019660,1.7268862,2961.8,2961.0,1.76841496]
[1768957021914,1.7258862,2961.7,2960.8,1.11793521]
[1768957022119,1.95207482,2961.7,2960.7,1.77041496]
[1768957023650,1.95207482,2961.7,2961.0,1.76841496]
[1768957023651,1.7258862,2961.7,2961.0,1.76841496]
[1768957023859,2.2608862,2961.7,2961.0,1.76841496]
[1768957024168,0.001,2961.8,2961.0,1.76841496]
[1768957024169,1.7258862,2961.6,2961.0,1.76841496]
[1768957026329,0.001,2961.5,2961.0,1.76841496]
[1768957026529,0.001,2961.5,2961.1,0.79348946]
[1768957027059,1.7258862,2962.5,2961.4,1.76841496]
[1768957027353,1.7258862,2962.5,2961.6,6.16447967]
[1768957027669,1.7258862,2962.4,2961.1,2.56190442]
[1768957027869,1.7258862,2962.2,2961.1,1.76841496]
[1768957028028,1.7258862,2962.0,2961.1,1.76841496]
[1768957029538,1.7258862,2961.9,2960.9,1.77041496]
[1768957029840,1.7258862,2961.9,2960.9,0.002]
[1768957030040,1.7258862,2961.7,2960.9,0.002]
[1768957030242,1.7258862,2961.5,2960.9,0.002]
[1768957030445,0.535,2961.6,2961.1,1.76841496]
[1768957030639,1.7258862,2961.9,2961.1,1.76841496]
[1768957030944,0.535,2961.6,2961.1,1.76841496]
[1768957031153,0.535,2961.6,2961.2,0.1768415]
[1768957031849,1.7258862,2961.8,2961.2,0.1768415]
[1768957032045,0.535,2961.7,2961.2,1.94525646]
[1768957033376,1.7258862,2962.3,2961.2,1.94525646]
[1768957033534,1.7258862,2962.3,2961.3,1.96294061]
[1768957033735,0.535,2962.2,2961.3,1.96294061]
[1768957033940,0.535,2962.2,2961.4,1.76841496]
[1768957034453,2.2608862,2962.2,2961.4,1.76841496]
[1768957035138,2.2608862,2962.2,2961.5,1.71396551]
[1768957035344,2.2608862,2962.2,2961.5,2.29800405]
[1768957035544,1.7752612,2962.1,2961.5,1.71396551]
[1768957036742,2.3102612,2962.3,2961.5,1.71396551]
[1768957036944,1.7752612,2962.2,2961.5,1.71396551]
[1768957037140,1.7752612,2962.2,2961.5,1.74127187]
[1768957037681,1.7752612,2962.2,2961.6,1.71396551]
[1768957037844,0.535,2962.3,2961.7,1.9435927]
[1768957038275,0.536,2962.3,2961.7,1.9435927]
[1768957038447,2.3112612,2962.3,2961.7,1.9435927]
[1768957039276,1.7752612,2962.2,2961.7,0.22962719]
[1768957039594,1.7752612,2962.2,2961.4,0.557]
[1768957039595,1.7752612,2962.2,2961.4,1e-08]
[1768957040183,1.7752612,2962.2,2961.4,0.55500001]
[1768957040481,1.7752612,2962.2,2961.4,0.51517751]
[1768957040657,1.7752612,2962.1,2961.4,0.09493331]
[1768957040859,1.7752612,2962.1,2961.0,1.71396551]
[1768957041054,1.7752612,2961.9,2961.0,1.71396551]
[1768957041772,1.7752612,2961.9,2961.0,1.74128546]
[1768957042189,1.7752612,2961.9,2961.0,1.71396551]
[1768957042367,1.7752612,2961.9,2961.0,2.26896551]
[1768957043141,1.7752612,2961.7,2961.0,0.555]
[1768957044981,1.7752612,2961.7,2961.0,1.11]
[1768957045173,1.7752612,2961.7,2961.0,2.82396551]
[1768957047453,1.7752612,2961.7,2961.0,3.37896551]
[1768957048094,1.7752612,2961.7,2961.1,1.74129351]
[1768957048292,1.7752612,2961.7,2961.1,2.41985503]
[1768957049390,1.7752612,2961.7,2961.1,2.39252703]
[1768957049574,1.7752612,2961.7,2961.1,1.71396551]
[1768957049749,1.7752612,2961.7,2961.1,2.26896551]
[1768957050464,1.7752612,2961.7,2961.2,0.002]
[1768957050663,1.7762612,2961.7,2961.2,0.002]
[1768957052183,1.7762612,2961.7,2961.2,0.557]
[1768957053591,1.7762612,2961.7,2961.0,3.38096551]
[1768957053592,1.7752612,2961.6,2961.0,1.667]
[1768957054358,1.7752612,2961.6,2960.6,1.71590909]
[1768957054661,1.7752612,2961.6,2961.0,0.555]
[1768957054860,1.7752612,2961.6,2961.1,1.74773674]
[1768957055053,0.535,2961.5,2961.1,1.71396551]
[1768957056894,1.7752612,2961.6,2961.1,1.71396551]
[1768957057209,1.7752612,2961.6,2961.1,2.26896551]
[1768957057390,2.00638732,2961.6,2961.1,2.26896551]
[1768957057590,3.37616017,2962.0,2961.1,2.26896551]
[1768957057591,1.7752612,2962.0,2961.4,1.71396551]
[1768957059268,1.7752612,2961.8,2961.3,6.16379953]
[1768957059591,1.7752612,2961.8,2961.3,6.71879953]
[1768957060092,1.7752612,2961.8,2961.3,8.43276504]
[1768957061388,1.7752612,2961.8,2961.3,9.33154154]
[1768957061983,1.7752612,2961.8,2961.3,9.88654154]
[1768957063172,1.7752612,2961.8,2961.3,1e-08]
[1768957064297,1.7752612,2961.8,2961.3,0.55500001]
[1768957064479,1.7752612,2961.8,2961.3,0.51548014]
[1768957064679,1.7752612,2961.8,2961.3,0.002]
[1768957064877,1.7752612,2961.8,2961.1,0.555]
[1768957065086,1.7752612,2961.8,2961.1,2.20270969]
[1768957065270,1.70490874,2961.6,2961.1,0.555]
[1768957065598,1.70490874,2961.4,2961.1,0.15953905]
[1768957065792,1.70490874,2961.4,2961.0,0.557]
[1768957066884,1.70490874,2961.4,2961.0,1.112]
[1768957069396,1.70490874,2961.4,2961.0,1.667]
[1768957069803,1.70490874,2961.8,2961.1,1.73803067]
[1768957070104,0.536,2961.7,2961.1,1.73803067]
[1768957070486,2.24090874,2961.7,2961.1,1.73803067]
[1768957071312,0.536,2961.6,2961.1,1.73803067]
[1768957071509,0.536,2961.6,2961.3,1.73803067]
[1768957072306,1.70490874,2961.8,2961.3,1.73803067]
[1768957072473,0.536,2961.7,2961.3,1.73803067]
[1768957073607,0.536,2961.6,2961.2,0.99093333]
[1768957073778,2.24090874,2961.6,2961.2,0.99093333]
[1768957074179,2.24090874,2961.6,2961.2,0.555]
[1768957074499,0.536,2961.6,2961.2,0.555]
[1768957074681,1.70490874,2961.5,2961.2,0.555]
[1768957076910,1.70490874,2961.5,2961.2,1.11]
[1768957077081,0.536,2961.6,2961.2,1.11]
[1768957077282,2.24090874,2961.6,2961.2,1.11]
[1768957077504,0.001,2961.4,2961.2,1.11]
[1768957077811,2.24090874,2961.6,2961.2,2.26743333]
[1768957079299,2.24090874,2961.6,2961.2,2.82243333]
[1768957079493,2.24090874,2961.6,2961.2,4.560464]
[1768957080617,0.536,2961.6,2961.3,1.73803067]
[1768957081622,0.536,2961.6,2961.2,4.560464]
[1768957081919,2.24090874,2961.6,2961.2,5.115464]
[1768957082101,2.24090874,2961.6,2961.2,3.95803067]
[1768957083220,1.70490874,2962.1,2961.3,1.73803067]
[1768957083416,2.24090874,2962.0,2961.3,1.73803067]
[1768957083608,1.70490874,2961.9,2961.3,1.73803067]
[1768957084314,1.70490874,2961.7,2961.3,2.29303067]
[1768957084623,0.001,2962.3,2961.7,1.73803067]
[1768957084790,0.536,2962.2,2961.7,1.73803067]
[1768957084989,1.70490874,2962.2,2961.7,0.2872408]
[1768957085319,0.536,2962.1,2961.7,0.2872408]
[1768957085924,1.70490874,2962.2,2961.7,0.2872408]
[1768957086224,0.536,2962.1,2961.7,0.09802139]
[1768957086722,0.536,2962.1,2961.7,0.65302139]
[1768957086920,1.70490874,2962.0,2961.5,1.73803067]
[1768957087694,1.70490874,2962.0,2961.3,7.1701026]
[1768957087695,1.70490874,2962.0,2961.3,8.2508905]
[1768957088023,1.70490874,2962.0,2961.3,0.555]
[1768957088429,1.70490874,2961.8,2961.3,0.555]
[1768957089138,1.70590874,2961.8,2961.3,0.555]
[1768957089332,1.70590874,2961.8,2961.3,1e-08]
[1768957091711,1.70590874,2961.8,2961.3,0.55500001]
[1768957092327,1.93009961,2961.8,2961.3,0.55500001]
[1768957093400,1.93009961,2961.8,2961.2,1.32398391]
[1768957094110,1.93009961,2961.8,2961.2,1.87898391]
[1768957095508,0.536,2961.7,2961.2,3.08854253]
[1768957095697,2.20323364,2961.7,2961.2,3.08854253]
[1768957096318,0.536,2961.6,2961.3,1.22305392]
[1768957098803,0.536,2961.6,2961.2,2.43398391]
[1768957099011,0.536,2961.6,2961.2,4.25158142]
[1768957101237,0.001,2961.8,2961.5,0.002]
[1768957101531,1.66823364,2961.8,2961.4,1e-08]
[1768957101702,0.536,2961.7,2961.4,1e-08]
[1768957102028,1.66823364,2961.8,2961.4,1e-08]
[1768957102253,1.66823364,2961.8,2961.4,0.97097836]
[1768957102430,0.536,2961.7,2961.4,0.97097836]
[1768957103299,0.001,2961.8,2961.4,1.00579354]
[1768957103524,2.20423364,2961.8,2961.4,1.00579354]
[1768957103907,0.001,2961.8,2961.5,0.05193422]
[1768957104110,0.537,2961.8,2961.5,0.05193422]
[1768957104519,1.66723364,2962.2,2961.7,0.05193422]
[1768957104706,2.20323364,2962.1,2961.6,6.21573375]
[1768957105325,2.20323364,2962.1,2961.7,0.06886378]
[1768957106458,2.20323364,2962.1,2961.7,0.555]
[1768957107254,1.66723364,2962.1,2961.7,0.555]
[1768957107452,2.20323364,2962.1,2961.7,0.555]
[1768957109155,2.20323364,2962.1,2961.7,1.11]
[1768957112049,2.20323364,2962.1,2961.7,1.30699656]
[1768957112268,2.20323364,2962.1,2961.7,1.86199656]
[1768957113420,0.001,2961.9,2961.7,1.665]
[1768957114648,0.001,2961.9,2961.7,2.22]
[1768957114827,1.66723364,2962.2,2961.7,8.5794297]
[1768957115025,1.66723364,2962.2,2961.7,2.4175167]
[1768957115244,1.66723364,2962.2,2961.7,2.73670549]
[1768957115766,1.66723364,2962.2,2961.7,2.14342136]
[1768957115923,1.66723364,2962.2,2961.4,0.555]
[1768957116637,1.66723364,2962.1,2961.4,0.555]
[1768957117028,1.66723364,2962.1,2961.4,1.07860993]
[1768957117448,1.66723364,2962.1,2961.4,1e-08]
[1768957117665,1.66723364,2961.9,2961.4,1e-08]
[1768957117845,1.66723364,2961.7,2961.4,1e-08]
[1768957119530,1.66723364,2961.6,2961.0,2.222]
[1768957120558,1.66723364,2961.6,2960.7,1.69073987]
[1768957120757,1.66723364,2961.4,2960.7,1.69073987]
[1768957120926,1.66723364,2961.2,2960.7,1.69073987]
[1768957121250,1.66723364,2961.2,2960.6,0.00194358]
[1768957121855,1.66723364,2961.2,2960.6,0.55694358]
[1768957122427,1.66723364,2961.2,2960.6,1e-08]
[1768957122653,1.66723364,2961.0,2960.6,1e-08]
[1768957122853,2.20323364,2960.9,2960.6,1e-08]
[1768957124857,2.20323364,2960.9,2960.6,0.55500001]
[1768957125756,2.20323364,2960.9,2960.6,0.55700001]
[1768957125958,1.92909142,2960.8,2960.6,0.55700001]
[1768957126341,1.92909142,2960.8,2960.5,0.00198119]
[1768957126850,1.92909142,2960.8,2960.3,0.002]
[1768957127234,1.92909142,2960.8,2960.3,1.96360964]
[1768957127435,1.92909142,2960.8,2960.3,2.51860964]
[1768957130458,1.92909142,2960.8,2960.3,3.07360964]
[1768957133069,1.92909142,2960.8,2960.3,3.62860964]
[1768957135377,2.17560056,2960.8,2960.3,2.222]
[1768957135983,2.17560056,2960.8,2960.3,0.770524]
[1768957136861,2.17560056,2960.8,2960.2,0.002]
[1768957137058,2.17560056,2960.8,2960.5,0.002]
[1768957137306,1.93009142,2960.6,2960.2,0.002]
[1768957137788,1.93009142,2960.6,2960.3,0.002]
[1768957137963,1.93009142,2960.6,2960.2,0.557]
[1768957138163,1.93009142,2960.6,2960.2,0.44205467]
[1768957138370,0.16680847,2960.1,2959.9,0.002]
[1768957138583,2.63189989,2960.1,2959.9,0.002]
[1768957138902,0.70280847,2960.1,2959.9,0.002]
[1768957139401,0.70280847,2960.1,2959.8,1.96360964]
[1768957140349,0.70280847,2960.1,2959.8,2.51860964]
[1768957142393,0.70280847,2960.1,2959.1,0.002]
[1768957142394,1.92909142,2960.0,2959.1,0.002]
[1768957142599,2.46609142,2960.0,2959.5,1.96360964]
[1768957143100,1.92909142,2960.0,2959.5,2.51860964]
[1768957143266,0.537,2959.9,2959.5,2.43261351]
[1768957143621,1.92909142,2960.0,2959.5,1.91665529]
[1768957143806,0.537,2959.8,2959.5,1.55674949]
[1768957143980,0.537,2959.8,2959.5,1.54263014]
[1768957144182,0.537,2959.7,2959.5,1.54263014]
[1768957144946,3.37786435,2960.5,2959.6,1.96160964]
[1768957144947,1.92909142,2960.5,2959.6,1.96160964]
[1768957145238,1.92909142,2960.3,2959.8,1.79480118]
[1768957146220,1.92909142,2960.3,2959.6,2.51660964]
[1768957146383,1.92909142,2960.3,2959.6,0.555]
[1768957146919,1.92909142,2960.3,2959.7,1.96160964]
[1768957147924,0.537,2960.2,2959.8,1.96160964]
[1768957148223,2.46609142,2960.2,2959.7,2.51660964]
[1768957148379,1.92909142,2960.1,2959.7,0.555]
[1768957150098,1.93009142,2960.1,2959.7,0.555]
[1768957150301,1.93009142,2960.1,2959.7,1.11]
[1768957150625,1.93009142,2960.1,2959.7,1e-08]
[1768957151943,2.46609142,2960.0,2959.7,1e-08]
[1768957152724,2.46609142,2960.0,2959.7,0.55500001]
[1768957155003,0.001,2960.1,2959.7,2.78784505]
[1768957155346,0.537,2960.0,2959.7,3.34284505]
[1768957155937,0.001,2960.1,2959.7,3.34284505]
[1768957156140,0.537,2960.0,2959.8,2.23284504]
[1768957158110,0.001,2960.6,2959.9,2.23284504]
[1768957158310,0.537,2960.5,2960.1,2.23284504]
[1768957160132,0.538,2960.6,2960.1,2.23284504]
[1768957160816,2.82195466,2960.6,2960.1,2.78784504]
[1768957161958,0.001,2960.3,2960.1,2.78784504]
[1768957163249,0.001,2960.3,2960.1,1.11]
[1768957165168,0.001,2960.3,2959.9,2.23284504]
[1768957165375,2.82095466,2960.2,2959.8,0.555]
[1768957165667,2.82095466,2960.2,2959.8,1.03544954]
[1768957165852,2.82095466,2960.2,2959.7,1.11000001]
[1768957167953,2.82095466,2960.2,2959.7,3.34284505]
[1768957168155,2.82095466,2960.2,2959.8,2.23284504]
[1768957168359,0.537,2960.1,2959.8,2.23284504]
[1768957168856,0.537,2960.1,2959.7,1.66500001]
[1768957169035,0.537,2960.1,2959.7,3.89784505]
[1768957170160,2.28395466,2960.2,2959.7,3.89784505]
[1768957170354,0.537,2960.0,2959.7,4.45284505]
[1768957170556,2.82095466,2960.0,2959.7,2.22000001]
[1768957170762,0.537,2959.9,2959.7,1e-08]
[1768957173157,0.537,2959.9,2959.7,2.78784505]
[1768957173525,0.537,2959.9,2959.7,0.55500001]
[1768957173925,2.82095466,2959.9,2959.7,0.55500001]
[1768957174230,2.82095466,2959.9,2959.7,0.48302224]
[1768957174451,2.82095466,2959.9,2959.6,0.557]
[1768957175057,0.537,2959.9,2959.6,2.78984504]
[1768957175256,0.537,2959.8,2959.6,2.78984504]
[1768957175466,0.537,2959.8,2959.6,3.67932954]
[1768957176067,0.43276086,2959.8,2959.7,2.23284504]
[1768957177850,0.43276086,2959.8,2959.7,0.555]
[1768957178480,2.28395466,2960.0,2959.7,0.555]
[1768957178481,2.28395466,2960.0,2959.7,0.4639742]
[1768957178681,0.537,2959.9,2959.7,0.4639742]
[1768957180285,0.537,2959.9,2959.7,1.0189742]
[1768957182693,0.537,2959.9,2959.7,1.5739742]
[1768957184694,2.28395466,2960.0,2959.7,1.5739742]
[1768957184860,0.537,2959.9,2959.7,1.5739742]
[1768957185203,0.537,2959.9,2959.7,2.1289742]
[1768957186392,0.538,2959.9,2959.7,2.1289742]
[1768957187406,0.538,2959.9,2959.7,2.6839742]
[1768957187579,3.01517976,2959.9,2959.7,2.6839742]
[1768957187785,3.01517976,2959.9,2959.7,1.33166145]
[1768957188294,3.01517976,2959.9,2959.7,1e-08]
[1768957188460,3.01517976,2959.9,2959.6,1.112]
[1768957190095,3.01517976,2959.9,2959.6,1.667]
[1768957190396,3.01517976,2959.9,2959.6,0.23965049]
[1768957191594,2.47717976,2959.8,2959.6,0.23965049]
[1768957191793,3.31679774,2959.9,2959.6,0.23965049]
[1768957192200,0.537,2959.8,2959.6,0.23965049]
[1768957192385,0.537,2959.8,2959.6,0.79465049]
[1768957192588,0.537,2959.8,2959.6,1e-08]
[1768957194774,0.537,2959.8,2959.6,0.55500001]
[1768957195374,0.537,2959.8,2959.6,0.51384854]
[1768957195568,0.537,2959.8,2959.6,0.09022618]
[1768957195773,0.537,2959.8,2959.5,2.98499027]
[1768957197191,0.537,2959.8,2959.5,3.53999027]
[1768957197393,0.537,2959.8,2959.5,1.11]
[1768957198178,0.001,2959.6,2959.5,1.11]
[1768957199596,0.001,2959.6,2959.5,1.665]
[1768957199894,0.001,2959.6,2959.5,4.09499027]
[1768957200605,0.001,2960.1,2959.8,2.42999027]
[1768957200761,0.537,2960.1,2959.8,2.42999027]
[1768957201097,0.538,2960.3,2959.9,2.42999027]
[1768957201870,0.538,2960.3,2959.9,2.98499027]
[1768957202187,2.47717976,2960.2,2959.9,0.555]
[1768957202387,2.47717976,2960.0,2959.5,0.31259587]
[1768957202697,2.47717976,2959.8,2959.5,0.31259587]
[1768957202907,2.47717976,2959.8,2959.0,2.42999027]
[1768957203075,0.537,2959.7,2959.0,2.42999027]
[1768957203277,2.47717976,2959.6,2959.0,2.42999027]
[1768957203477,2.47717976,2959.6,2958.8,2.96899027]
[1768957203983,2.47717976,2959.6,2958.9,2.43199027]
[1768957204190,2.47717976,2959.6,2959.1,0.557]
[1768957205709,2.47717976,2960.2,2959.4,2.42999027]
[1768957205874,3.01417976,2960.2,2959.4,2.42999027]
[1768957206478,3.01417976,2960.2,2959.2,0.539]
[1768957206683,2.47717976,2960.1,2959.4,0.555]
[1768957206900,2.47717976,2959.9,2959.4,0.555]
[1768957207209,2.47717976,2959.7,2959.4,0.555]
[1768957208070,2.47717976,2959.9,2959.4,0.555]
[1768957208275,0.537,2959.8,2959.4,2.98499027]
[1768957208707,2.47717976,2959.7,2959.4,0.555]
[1768957209012,2.77859774,2959.7,2959.1,0.557]
[1768957209198,2.47717976,2959.7,2959.1,2.98699027]
[1768957209506,0.001,2959.5,2959.1,2.98699027]
[1768957211511,0.001,2959.5,2959.2,2.42999027]
[1768957212783,2.47717976,2960.1,2959.3,2.42999027]
[1768957212984,3.26299774,2960.1,2959.3,2.42999027]
[1768957213213,3.01517976,2960.1,2959.3,2.42999027]
[1768957214007,3.01517976,2960.1,2959.3,0.555]
[1768957215808,2.61925743,2960.0,2959.3,0.555]
[1768957216015,2.61925743,2959.8,2959.3,0.555]
[1768957216182,3.15725743,2959.8,2959.3,3.17335735]
[1768957216383,3.15725743,2959.8,2959.3,3.72835735]
[1768957217119,3.15725743,2959.8,2959.3,1.11]
[1768957218843,3.15725743,2959.8,2959.3,1.665]
[1768957219240,2.61925743,2959.7,2959.1,1.112]
[1768957219424,2.61925743,2959.5,2958.9,0.00116617]
[1768957219758,2.61925743,2959.3,2958.2,0.54]
[1768957220047,2.61925743,2959.1,2958.1,2.62035735]
[1768957220260,2.61925743,2958.9,2958.1,2.62035735]
[1768957220462,2.61925743,2958.9,2958.3,2.61835735]
[1768957220612,0.538,2958.8,2958.3,2.61835735]
[1768957221005,0.538,2958.8,2958.1,0.002]
[1768957221006,3.15725743,2958.8,2958.1,0.002]
[1768957221329,3.15725743,2958.8,2958.3,0.555]
[1768957221848,3.69502523,2959.2,2958.3,0.555]
[1768957221849,0.538,2958.7,2958.3,0.555]
[1768957222015,3.15725743,2958.7,2958.3,0.555]
[1768957222325,0.538,2958.8,2958.3,3.17335735]
[1768957222723,2.61925743,2958.9,2958.3,3.17335735]
[1768957222921,0.538,2958.8,2958.3,3.17335735]
[1768957223533,3.15725743,2958.8,2958.3,3.72835735]
[1768957223706,3.15725743,2958.8,2958.3,1.11]
[1768957224030,2.61925743,2958.7,2958.3,1.11]
[1768957225533,2.61925743,2958.7,2958.3,1e-08]
[1768957225915,2.61925743,2958.7,2958.3,0.55500001]
[1768957227439,2.61925743,2958.7,2958.3,1e-08]
[1768957228435,2.61925743,2958.6,2958.1,1e-08]
[1768957228643,4.23352346,2958.8,2958.1,1e-08]
[1768957228644,0.31572574,2958.8,2958.3,2.61835735]
[1768957228952,0.538,2958.8,2958.3,2.61835735]
[1768957229350,2.61925743,2958.9,2958.3,2.61835735]
[1768957229537,3.15725743,2958.9,2958.3,2.61835735]
[1768957230118,0.538,2958.9,2958.3,2.61835735]
[1768957230954,0.538,2958.9,2958.3,3.17335735]
[1768957231137,0.538,2958.9,2958.4,2.61835735]
[1768957231455,3.15725743,2958.9,2958.3,1.48992726]
[1768957231655,3.15725743,2958.9,2958.3,0.555]
[1768957233147,3.15725743,2958.9,2958.5,0.002]
[1768957233555,2.62025743,2958.7,2958.5,0.002]
[1768957234747,2.62025743,2958.7,2958.3,1e-08]
[1768957235458,3.69507152,2959.2,2958.5,2.61835735]
[1768957235459,0.538,2959.0,2958.5,2.61835735]
[1768957235636,2.61925743,2959.1,2958.5,2.61835735]
[1768957235837,3.15725743,2959.0,2958.5,3.17335735]
[1768957236049,3.15725743,2958.9,2958.5,0.555]
[1768957236371,3.15725743,2958.9,2958.5,1e-08]
[1768957237880,3.15725743,2958.9,2957.6,3.38107807]
[1768957237881,1.35304419,2958.1,2957.7,2.61835735]
[1768957238430,1.35304419,2958.1,2957.7,3.17335735]
[1768957238667,1.35304419,2958.1,2957.7,3.49069309]
[1768957238836,1.35304419,2958.1,2957.8,2.61835735]
[1768957239835,1.35304419,2958.1,2957.7,0.555]
[1768957240760,1.35304419,2958.1,2957.7,3.72835735]
[1768957242175,1.35304419,2958.1,2957.7,1.11]
[1768957242176,3.97230162,2958.1,2957.7,1.11]
[1768957242469,2.61925743,2958.0,2957.7,1.11]
[1768957242656,2.61925743,2957.8,2957.4,0.002]
[1768957243247,2.61925743,2957.8,2957.4,0.557]
[1768957244373,2.61925743,2957.8,2957.4,1e-08]
[1768957245638,2.61925743,2957.8,2957.4,0.55500001]
[1768957245838,2.93498317,2957.8,2957.4,1e-08]
[1768957246656,2.87245568,2958.6,2957.6,3.11555224]
[1768957246946,3.41045568,2958.5,2957.6,3.11555224]
[1768957247150,3.41045568,2958.5,2957.6,0.002]
[1768957248385,2.87245568,2958.5,2957.6,3.67055224]
[1768957248548,3.41045568,2958.4,2957.7,4.09819898]
[1768957248877,3.41045568,2958.4,2957.6,0.557]
[1768957249079,2.87245568,2958.6,2957.9,3.11355224]
[1768957249275,3.41045568,2958.5,2957.9,3.11253798]
[1768957249490,3.41045568,2958.5,2957.7,3.11355224]
[1768957249786,3.41045568,2958.5,2957.7,4.09819898]
[1768957250681,3.41045568,2958.5,2957.7,4.65319898]
[1768957252154,3.41045568,2958.5,2957.8,3.11355224]
[1768957252355,0.538,2958.4,2957.8,3.11355224]
[1768957252680,0.538,2958.4,2957.9,3.11355224]
[1768957253074,0.538,2958.4,2957.9,3.66855224]
[1768957254082,2.87245568,2958.6,2957.9,3.66855224]
[1768957254290,0.538,2958.4,2957.9,3.66855224]
[1768957255191,2.87245568,2958.2,2957.7,0.555]
[1768957255557,2.87245568,2958.2,2957.7,1.11]
[1768957257463,0.538,2958.4,2957.8,3.11355224]
[1768957257464,2.87245568,2958.4,2957.8,3.11355224]
[1768957257804,0.001,2958.7,2958.2,3.11355224]
[1768957258995,2.87245568,2959.2,2958.5,3.11355224]
[1768957259519,3.41045568,2959.2,2958.5,3.11355224]
[1768957260364,3.41045568,2959.2,2958.5,3.66855224]
[1768957260695,0.001,2959.6,2958.5,3.66855224]
[1768957260899,2.87245568,2959.8,2959.1,3.11355224]
[1768957261968,3.41045568,2959.8,2959.1,3.11355224]
[1768957262199,2.87245568,2960.1,2959.1,3.11355224]
[1768957262495,0.538,2960.0,2959.1,3.11355224]
[1768957262699,2.87245568,2960.1,2959.3,3.11355224]
[1768957263396,2.87345568,2960.3,2959.4,3.11355224]
[1768957263565,0.539,2960.3,2959.4,3.11355224]
[1768957263974,0.001,2960.3,2959.4,3.65355224]
[1768957264173,0.82634557,2960.3,2959.4,3.65355224]
[1768957264617,0.001,2960.3,2959.8,3.11355224]
[1768957264986,0.001,2960.3,2959.8,3.66855224]
[1768957265311,2.87345568,2960.3,2959.5,3.65353351]
[1768957266710,2.87345568,2960.3,2959.7,3.11355224]
[1768957266711,0.001,2960.3,2959.7,3.11355224]
[1768957266869,0.001,2960.3,2959.6,6.17591519]
[1768957266870,0.001,2960.3,2959.9,3.11355224]
[1768957267484,0.001,2960.3,2959.9,3.66855224]
[1768957267799,0.001,2960.3,2959.9,0.555]
[1768957268796,0.001,2960.6,2960.1,3.11355224]
[1768957269406,2.87345568,2960.6,2960.0,0.54]
[1768957269799,2.87245568,2960.5,2960.0,0.555]
[1768957270579,0.001,2960.6,2960.0,3.66855224]
[1768957271289,0.001,2960.1,2960.0,3.66855224]
[1768957271611,0.001,2960.6,2960.0,3.66855224]
[1768957271981,2.87245568,2961.0,2960.3,9.28946743]
[1768957272181,2.87245568,2961.0,2960.3,3.11355224]
[1768957272390,2.87245568,2961.0,2960.3,3.66855224]
[1768957272892,3.41045568,2961.0,2960.3,3.66855224]
[1768957273817,3.41045568,2961.1,2960.3,3.66855224]
[1768957274396,2.87245568,2961.0,2960.3,3.66855224]
[1768957274711,2.87245568,2961.0,2960.0,6.73091519]
[1768957274712,2.87245568,2961.0,2960.0,0.555]
[1768957274890,2.87245568,2960.9,2960.0,0.555]
[1768957275091,2.87245568,2960.7,2960.0,1e-08]
[1768957275400,3.32703632,2960.5,2960.0,1e-08]
[1768957275585,3.32703632,2960.3,2960.0,1e-08]
[1768957277312,3.32703632,2960.3,2959.9,1e-08]
[1768957279285,3.86503632,2960.2,2959.1,0.555]
[1768957279498,3.32703632,2960.0,2958.5,0.555]
[1768957279798,3.32703632,2959.0,2958.5,0.555]
[1768957282291,3.32703632,2959.0,2958.5,1.11]
[1768957283936,3.32703632,2958.9,2957.9,0.002]
[1768957284225,3.32703632,2958.7,2957.9,0.002]
[1768957284388,3.32703632,2958.7,2957.6,0.55694365]
[1768957284587,3.32703632,2958.7,2957.6,0.555]
[1768957286122,3.32703632,2958.5,2957.6,0.555]
[1768957286288,3.32703632,2958.3,2957.6,0.555]
[1768957287124,3.32703632,2958.3,2957.6,1.11]
[1768957288219,3.37997701,2958.6,2957.7,2.62780805]
[1768957288220,0.539,2958.5,2957.7,2.62780805]
[1768957288889,3.32703632,2958.9,2957.9,3.18280804]
[1768957289091,1.20965629,2958.8,2957.9,3.18280804]
[1768957289294,3.32703632,2958.7,2957.9,3.18280804]
[1768957289494,3.32703632,2958.7,2957.9,3.73780804]
[1768957290919,4.58950028,2958.8,2957.9,3.73780804]
[1768957290920,0.67065629,2958.8,2957.9,3.73780804]
[1768957291122,0.539,2958.9,2958.1,3.18280804]
[1768957291422,0.539,2958.9,2958.2,0.02734857]
[1768957291423,3.86603632,2958.9,2958.2,0.02734857]
[1768957292005,3.86603632,2958.9,2958.2,0.555]
[1768957292526,7.24567628,2958.9,2958.2,0.555]
[1768957292703,4.05160395,2958.8,2957.9,0.555]
[1768957292905,3.32703632,2958.6,2957.9,1e-08]
[1768957293218,3.32703632,2958.4,2957.9,1e-08]
[1768957293728,0.539,2958.3,2957.9,1e-08]
[1768957293937,0.5360069,2958.3,2957.9,1e-08]
[1768957295049,0.5360069,2958.3,2958.1,0.002]